Department Family,Entity,Date,Expense Type,Expense Area,Supplier,Transaction Number,AP Amount
Department of Health,NHS Barnsley CCG,31/07/2020,Clinical&Medical-Commercial Sector,OUT OF HOURS,BARNSLEY HEALTHCARE FEDERATION,33027685,"136,313.69"
Department of Health,NHS Barnsley CCG,31/07/2020,C&M-GP PRACTICE REVENUE - PCTF,LOCAL ENHANCED SERVICES,BARNSLEY HEALTHCARE FEDERATION,33027690,"119,424.50"
Department of Health,NHS Barnsley CCG,31/07/2020,Clinical&Medical-Clinical Other,PRIMARY CARE DEVELOPMENT,BARNSLEY HEALTHCARE FEDERATION,33027697,"54,166.67"
Department of Health,NHS Barnsley CCG,31/07/2020,Clinical&Medical-Clinical Other,PRIMARY CARE DEVELOPMENT,BARNSLEY HEALTHCARE FEDERATION,33027698,"28,842.20"
Department of Health,NHS Barnsley CCG,31/07/2020,C&M-APMS Contract Value,PRC DELEGATED CO-COMMISSIONING,BARNSLEY HEALTHCARE FEDERATION,33066184,"28,568.81"
Department of Health,NHS Barnsley CCG,31/07/2020,C&M-APMS OOH Opt Outs,PRC DELEGATED CO-COMMISSIONING,BARNSLEY HEALTHCARE FEDERATION,33066184,1.70
Department of Health,NHS Barnsley CCG,31/07/2020,C&M-APMS PCN DES Participation,PRC DELEGATED CO-COMMISSIONING,BARNSLEY HEALTHCARE FEDERATION,33066184,539.11
Department of Health,NHS Barnsley CCG,31/07/2020,C&M-APMS Prem Actual Rent,PRC DELEGATED CO-COMMISSIONING,BARNSLEY HEALTHCARE FEDERATION,33066184,"1,310.42"
Department of Health,NHS Barnsley CCG,31/07/2020,C&M-APMS QOF Aspiration,PRC DELEGATED CO-COMMISSIONING,BARNSLEY HEALTHCARE FEDERATION,33066184,"2,628.10"
Department of Health,NHS Barnsley CCG,31/07/2020,C&M-PMS Prem Rates,PRC DELEGATED CO-COMMISSIONING,BARNSLEY HEALTHCARE FEDERATION,33066184,511.00
Department of Health,NHS Barnsley CCG,31/07/2020,C&M-PMS Prem Water Rates,PRC DELEGATED CO-COMMISSIONING,BARNSLEY HEALTHCARE FEDERATION,33066184,59.48
Department of Health,NHS Barnsley CCG,31/07/2020,C&M-APMS Contract Value,PRC DELEGATED CO-COMMISSIONING,BARNSLEY HEALTHCARE FEDERATION,33066186,"31,517.93"
Department of Health,NHS Barnsley CCG,31/07/2020,C&M-APMS OOH Opt Outs,PRC DELEGATED CO-COMMISSIONING,BARNSLEY HEALTHCARE FEDERATION,33066186,35.04
Department of Health,NHS Barnsley CCG,31/07/2020,C&M-APMS PCN DES Participation,PRC DELEGATED CO-COMMISSIONING,BARNSLEY HEALTHCARE FEDERATION,33066186,594.76
Department of Health,NHS Barnsley CCG,31/07/2020,C&M-APMS Prem Actual Rent,PRC DELEGATED CO-COMMISSIONING,BARNSLEY HEALTHCARE FEDERATION,33066186,"2,150.00"
Department of Health,NHS Barnsley CCG,31/07/2020,C&M-APMS Prem Healthcentre Rent,PRC DELEGATED CO-COMMISSIONING,BARNSLEY HEALTHCARE FEDERATION,33066186,"7,733.90"
Department of Health,NHS Barnsley CCG,31/07/2020,C&M-PMS Prem Rates,PRC DELEGATED CO-COMMISSIONING,BARNSLEY HEALTHCARE FEDERATION,33066186,511.00
Department of Health,NHS Barnsley CCG,31/07/2020,C&M-PMS QOF Aspiration,PRC DELEGATED CO-COMMISSIONING,BARNSLEY HEALTHCARE FEDERATION,33066186,"2,656.39"
Department of Health,NHS Barnsley CCG,31/07/2020,C&M-APMS Contract Value,PRC DELEGATED CO-COMMISSIONING,BARNSLEY HEALTHCARE FEDERATION,33066187,-690.26
Department of Health,NHS Barnsley CCG,31/07/2020,C&M-APMS OOH Opt Outs,PRC DELEGATED CO-COMMISSIONING,BARNSLEY HEALTHCARE FEDERATION,33066187,"-1,384.28"
Department of Health,NHS Barnsley CCG,31/07/2020,ME - PMS GP Prior Year ERs,PRC DELEGATED CO-COMMISSIONING,BARNSLEY HEALTHCARE FEDERATION,33066187,"-14,639.77"
Department of Health,NHS Barnsley CCG,31/07/2020,ME-PMS GP Pension EEs-PMS,PRC DELEGATED CO-COMMISSIONING,BARNSLEY HEALTHCARE FEDERATION,33066187,-84.00
Department of Health,NHS Barnsley CCG,31/07/2020,ME-PMS GP Pension ERs Adjs - PMS,PRC DELEGATED CO-COMMISSIONING,BARNSLEY HEALTHCARE FEDERATION,33066187,-215.70
Department of Health,NHS Barnsley CCG,31/07/2020,ME-PMS GP Prior Year EEs,PRC DELEGATED CO-COMMISSIONING,BARNSLEY HEALTHCARE FEDERATION,33066187,"-13,743.87"
Department of Health,NHS Barnsley CCG,31/07/2020,C&M-APMS Contract Value,PRC DELEGATED CO-COMMISSIONING,BARNSLEY HEALTHCARE FEDERATION,33066188,"28,963.60"
Department of Health,NHS Barnsley CCG,31/07/2020,C&M-APMS OOH Opt Outs,PRC DELEGATED CO-COMMISSIONING,BARNSLEY HEALTHCARE FEDERATION,33066188,32.03
Department of Health,NHS Barnsley CCG,31/07/2020,C&M-APMS PCN DES Participation,PRC DELEGATED CO-COMMISSIONING,BARNSLEY HEALTHCARE FEDERATION,33066188,546.56
Department of Health,NHS Barnsley CCG,31/07/2020,C&M-APMS Prem Actual Rent,PRC DELEGATED CO-COMMISSIONING,BARNSLEY HEALTHCARE FEDERATION,33066188,"6,200.00"
Department of Health,NHS Barnsley CCG,31/07/2020,C&M-PMS Prem Rates,PRC DELEGATED CO-COMMISSIONING,BARNSLEY HEALTHCARE FEDERATION,33066188,"1,272.00"
Department of Health,NHS Barnsley CCG,31/07/2020,C&M-PMS QOF Aspiration,PRC DELEGATED CO-COMMISSIONING,BARNSLEY HEALTHCARE FEDERATION,33066188,"2,516.92"
Department of Health,NHS Barnsley CCG,31/07/2020,Clinical&Medical-Clinical Other,PRIMARY CARE DEVELOPMENT,BARNSLEY HEALTHCARE FEDERATION,33104445,"50,071.42"
Department of Health,NHS Barnsley CCG,31/07/2020,Clinical&Medical-Clinical Other,PRIMARY CARE DEVELOPMENT,BARNSLEY HEALTHCARE FEDERATION,33104450,"43,781.71"
Department of Health,NHS Barnsley CCG,31/07/2020,Clinical&Medical-Clinical Other,PRIMARY CARE DEVELOPMENT,BARNSLEY HEALTHCARE FEDERATION,33272529,"31,000.00"
Department of Health,NHS Barnsley CCG,31/07/2020,C&M-GMS PCN DES PCN support,LOCAL ENHANCED SERVICES,BARNSLEY HEALTHCARE FEDERATION,33383385,"31,390.84"
Department of Health,NHS Barnsley CCG,31/07/2020,C&M-PMS Contract Value,PRC DELEGATED CO-COMMISSIONING,BARNSLEY HEALTHCARE FEDERATION CIC (GOLDTHORPE),33066190,"42,632.30"
Department of Health,NHS Barnsley CCG,31/07/2020,C&M-PMS DES Minor Surgery,PRC DELEGATED CO-COMMISSIONING,BARNSLEY HEALTHCARE FEDERATION CIC (GOLDTHORPE),33066190,639.30
Department of Health,NHS Barnsley CCG,31/07/2020,C&M-PMS Out of Hours Opt Outs,PRC DELEGATED CO-COMMISSIONING,BARNSLEY HEALTHCARE FEDERATION CIC (GOLDTHORPE),33066190,1.83
Department of Health,NHS Barnsley CCG,31/07/2020,C&M-PMS PCN DES Participation,PRC DELEGATED CO-COMMISSIONING,BARNSLEY HEALTHCARE FEDERATION CIC (GOLDTHORPE),33066190,803.26
Department of Health,NHS Barnsley CCG,31/07/2020,C&M-PMS Prem Healthcentre Rent,PRC DELEGATED CO-COMMISSIONING,BARNSLEY HEALTHCARE FEDERATION CIC (GOLDTHORPE),33066190,"12,404.58"
Department of Health,NHS Barnsley CCG,31/07/2020,C&M-PMS QOF Aspiration,PRC DELEGATED CO-COMMISSIONING,BARNSLEY HEALTHCARE FEDERATION CIC (GOLDTHORPE),33066190,"4,154.52"
Department of Health,NHS Barnsley CCG,31/07/2020,Hcare Srv Rec Fdtn Trust-Contract Baseline,ACUTE COMMISSIONING,BARNSLEY HOSPITAL NHS FOUNDATION TRUST,33030999,"15,311,136.00"
Department of Health,NHS Barnsley CCG,31/07/2020,Clinical&Medical-Othe Public Sector,COMMISSIONING - NON ACUTE,BARNSLEY METROPOLITAN BOROUGH COUNCIL,33272532,"171,703.00"
Department of Health,NHS Barnsley CCG,31/07/2020,Clinical&Medical-Othe Public Sector,COMMUNITY SERVICES,BARNSLEY METROPOLITAN BOROUGH COUNCIL,33272532,"31,896.00"
Department of Health,NHS Barnsley CCG,31/07/2020,Clinical&Medical-Othe Public Sector,MENTAL HEALTH SERVICES - ADVOCACY,BARNSLEY METROPOLITAN BOROUGH COUNCIL,33272532,"9,883.00"
Department of Health,NHS Barnsley CCG,31/07/2020,Cont Care- Adult 100% Fully Funded,CHC ADULT FULLY FUNDED,BARNSLEY METROPOLITAN BOROUGH COUNCIL,33272532,"44,318.00"
Department of Health,NHS Barnsley CCG,31/07/2020,Expenditure on Drugs Action Team,MENTAL HEALTH SERVICES - SPECIALIST SERVICES,BARNSLEY METROPOLITAN BOROUGH COUNCIL,33272532,"25,000.00"
Department of Health,NHS Barnsley CCG,31/07/2020,Local AuthorityRevenue-Non-Contract,COMMUNITY SERVICES,BARNSLEY METROPOLITAN BOROUGH COUNCIL,33272532,"-4,875.00"
Department of Health,NHS Barnsley CCG,31/07/2020,Participation Fees,COMMUNITY SERVICES,BARNSLEY METROPOLITAN BOROUGH COUNCIL,33272532,"11,750.00"
Department of Health,NHS Barnsley CCG,31/07/2020,Services From Local Authorities,SAFEGUARDING,BARNSLEY METROPOLITAN BOROUGH COUNCIL,33272532,"10,362.00"
Department of Health,NHS Barnsley CCG,31/07/2020,Soc Care-Other Soc Care,COMMUNITY SERVICES,BARNSLEY METROPOLITAN BOROUGH COUNCIL,33272532,"232,770.00"
Department of Health,NHS Barnsley CCG,31/07/2020,Soc Care-Other Soc Care,INTERMEDIATE CARE,BARNSLEY METROPOLITAN BOROUGH COUNCIL,33272532,"21,333.00"
Department of Health,NHS Barnsley CCG,31/07/2020,Soc Care-Re-ablement services,COMMUNITY SERVICES,BARNSLEY METROPOLITAN BOROUGH COUNCIL,33272532,"195,691.00"
Department of Health,NHS Barnsley CCG,31/07/2020,Social Care-Res Long Stay Exp,LONG TERM CONDITIONS,BARNSLEY METROPOLITAN BOROUGH COUNCIL,33272532,"433,880.00"
Department of Health,NHS Barnsley CCG,31/07/2020,Social Care-Res Short Stay Exp,COMMUNITY SERVICES,BARNSLEY METROPOLITAN BOROUGH COUNCIL,33272532,"68,708.00"
Department of Health,NHS Barnsley CCG,31/07/2020,C&M-GMS DES Extended Hours Access,PRC DELEGATED CO-COMMISSIONING,BHF - PCN,33027683,"31,857.95"
Department of Health,NHS Barnsley CCG,31/07/2020,C&M-GMS PCN DES Clinical Director,PRC DELEGATED CO-COMMISSIONING,BHF - PCN,33027683,"15,863.06"
Department of Health,NHS Barnsley CCG,31/07/2020,C&M-APMS PCN DES PCN support,LOCAL ENHANCED SERVICES,BHF - PCN,33272530,"131,826.00"
Department of Health,NHS Barnsley CCG,31/07/2020,Telecoms-Phone Rental and Calls,PRC DELEGATED CO-COMMISSIONING,BT PLC,33272524,"20,813.83"
Department of Health,NHS Barnsley CCG,31/07/2020,Telecoms-Phone Rental and Calls,PRIMARY CARE DEVELOPMENT,BT PLC,33272524,"9,000.00"
Department of Health,NHS Barnsley CCG,31/07/2020,C&M-GMS DES Minor Surgery,PRC DELEGATED CO-COMMISSIONING,NHS BARNSLEY CCG GP PRACTICE,33324707,"4,762.74"
Department of Health,NHS Barnsley CCG,31/07/2020,C&M-GMS Global Sum,PRC DELEGATED CO-COMMISSIONING,NHS BARNSLEY CCG GP PRACTICE,33324707,"99,528.84"
Department of Health,NHS Barnsley CCG,31/07/2020,C&M-GMS PCN DES Participation,PRC DELEGATED CO-COMMISSIONING,NHS BARNSLEY CCG GP PRACTICE,33324707,"1,991.57"
Department of Health,NHS Barnsley CCG,31/07/2020,C&M-GMS Prem Actual Rent,PRC DELEGATED CO-COMMISSIONING,NHS BARNSLEY CCG GP PRACTICE,33324707,"12,500.00"
Department of Health,NHS Barnsley CCG,31/07/2020,C&M-GMS Prem Healthcentre Rent,PRC DELEGATED CO-COMMISSIONING,NHS BARNSLEY CCG GP PRACTICE,33324707,"3,362.77"
Department of Health,NHS Barnsley CCG,31/07/2020,C&M-GMS QOF Aspiration,PRC DELEGATED CO-COMMISSIONING,NHS BARNSLEY CCG GP PRACTICE,33324707,"8,864.82"
Department of Health,NHS Barnsley CCG,31/07/2020,ME - GMS GP Prior Year ERs,PRC DELEGATED CO-COMMISSIONING,NHS BARNSLEY CCG GP PRACTICE,33324707,"14,236.20"
Department of Health,NHS Barnsley CCG,31/07/2020,ME-GMS GP Prior Year EEs,PRC DELEGATED CO-COMMISSIONING,NHS BARNSLEY CCG GP PRACTICE,33324707,"12,375.00"
Department of Health,NHS Barnsley CCG,31/07/2020,NHS Recbles <1Yr- CHC Risk Pool Con,BALANCE SHEET,CARE FREE RECOVERY LTD,33272531,"29,528.36"
Department of Health,NHS Barnsley CCG,31/07/2020,Voids and Subsidies,RECHARGES NHS PROPERTY SERVICES LTD,COMMUNITY HEALTH PARTNERSHIPS LTD,32983314,"53,950.01"
Department of Health,NHS Barnsley CCG,31/07/2020,Soc Care-Bed-Based Int Care Servs,INTERMEDIATE CARE,CROWN CARE (IV) LTD,33132364,"67,714.29"
Department of Health,NHS Barnsley CCG,31/07/2020,C&M-GMS DES Minor Surgery,PRC DELEGATED CO-COMMISSIONING,NHS BARNSLEY CCG GP PRACTICE,33324685,"4,634.93"
Department of Health,NHS Barnsley CCG,31/07/2020,C&M-GMS Global Sum,PRC DELEGATED CO-COMMISSIONING,NHS BARNSLEY CCG GP PRACTICE,33324685,"91,757.14"
Department of Health,NHS Barnsley CCG,31/07/2020,C&M-GMS PCN DES Participation,PRC DELEGATED CO-COMMISSIONING,NHS BARNSLEY CCG GP PRACTICE,33324685,"1,801.32"
Department of Health,NHS Barnsley CCG,31/07/2020,C&M-GMS Prem Healthcentre Rent,PRC DELEGATED CO-COMMISSIONING,NHS BARNSLEY CCG GP PRACTICE,33324685,"27,745.64"
Department of Health,NHS Barnsley CCG,31/07/2020,C&M-GMS QOF Aspiration,PRC DELEGATED CO-COMMISSIONING,NHS BARNSLEY CCG GP PRACTICE,33324685,"7,538.78"
Department of Health,NHS Barnsley CCG,31/07/2020,Hcare Srv Rec Fdtn Trust-Contract Baseline,ACUTE COMMISSIONING,DONCASTER AND BASSETLAW HOSPITALS NHS FOUNDATION TRUST,33031004,"455,874.00"
Department of Health,NHS Barnsley CCG,31/07/2020,C&M-PMS Contract Value,PRC DELEGATED CO-COMMISSIONING,NHS BARNSLEY CCG GP PRACTICE,33066161,"95,844.33"
Department of Health,NHS Barnsley CCG,31/07/2020,C&M-PMS DES Minor Surgery,PRC DELEGATED CO-COMMISSIONING,NHS BARNSLEY CCG GP PRACTICE,33066161,"2,780.96"
Department of Health,NHS Barnsley CCG,31/07/2020,C&M-PMS PCN DES Participation,PRC DELEGATED CO-COMMISSIONING,NHS BARNSLEY CCG GP PRACTICE,33066161,"1,802.59"
Department of Health,NHS Barnsley CCG,31/07/2020,C&M-PMS PCO Other,PRC DELEGATED CO-COMMISSIONING,NHS BARNSLEY CCG GP PRACTICE,33066161,645.40
Department of Health,NHS Barnsley CCG,31/07/2020,C&M-PMS Prem Healthcentre Rent,PRC DELEGATED CO-COMMISSIONING,NHS BARNSLEY CCG GP PRACTICE,33066161,"18,613.69"
Department of Health,NHS Barnsley CCG,31/07/2020,C&M-PMS Prem Notional Rent,PRC DELEGATED CO-COMMISSIONING,NHS BARNSLEY CCG GP PRACTICE,33066161,"1,987.50"
Department of Health,NHS Barnsley CCG,31/07/2020,C&M-PMS Prem Rates,PRC DELEGATED CO-COMMISSIONING,NHS BARNSLEY CCG GP PRACTICE,33066161,425.00
Department of Health,NHS Barnsley CCG,31/07/2020,C&M-PMS Prem Water Rates,PRC DELEGATED CO-COMMISSIONING,NHS BARNSLEY CCG GP PRACTICE,33066161,425.81
Department of Health,NHS Barnsley CCG,31/07/2020,C&M-PMS QOF Aspiration,PRC DELEGATED CO-COMMISSIONING,NHS BARNSLEY CCG GP PRACTICE,33066161,"10,318.42"
Department of Health,NHS Barnsley CCG,31/07/2020,ME - PMS GP Prior Year ERs,PRC DELEGATED CO-COMMISSIONING,NHS BARNSLEY CCG GP PRACTICE,33066161,98.99
Department of Health,NHS Barnsley CCG,31/07/2020,ME-PMS GP Prior Year EEs,PRC DELEGATED CO-COMMISSIONING,NHS BARNSLEY CCG GP PRACTICE,33066161,643.73
Department of Health,NHS Barnsley CCG,31/07/2020,C&M-PMS Contract Value,PRC DELEGATED CO-COMMISSIONING,NHS BARNSLEY CCG GP PRACTICE,33066165,"59,942.05"
Department of Health,NHS Barnsley CCG,31/07/2020,C&M-PMS DES Minor Surgery,PRC DELEGATED CO-COMMISSIONING,NHS BARNSLEY CCG GP PRACTICE,33066165,"1,428.27"
Department of Health,NHS Barnsley CCG,31/07/2020,C&M-PMS PCN DES Participation,PRC DELEGATED CO-COMMISSIONING,NHS BARNSLEY CCG GP PRACTICE,33066165,"1,121.82"
Department of Health,NHS Barnsley CCG,31/07/2020,C&M-PMS Prem Healthcentre Rent,PRC DELEGATED CO-COMMISSIONING,NHS BARNSLEY CCG GP PRACTICE,33066165,"22,036.84"
Department of Health,NHS Barnsley CCG,31/07/2020,C&M-PMS QOF Aspiration,PRC DELEGATED CO-COMMISSIONING,NHS BARNSLEY CCG GP PRACTICE,33066165,"5,408.39"
Department of Health,NHS Barnsley CCG,31/07/2020,C&M-GMS DES Minor Surgery,PRC DELEGATED CO-COMMISSIONING,NHS BARNSLEY CCG GP PRACTICE,33324687,"3,398.95"
Department of Health,NHS Barnsley CCG,31/07/2020,C&M-GMS Global Sum,PRC DELEGATED CO-COMMISSIONING,NHS BARNSLEY CCG GP PRACTICE,33324687,"79,928.70"
Department of Health,NHS Barnsley CCG,31/07/2020,C&M-GMS PCN DES Participation,PRC DELEGATED CO-COMMISSIONING,NHS BARNSLEY CCG GP PRACTICE,33324687,"1,585.76"
Department of Health,NHS Barnsley CCG,31/07/2020,C&M-GMS Prem Notional Rent,PRC DELEGATED CO-COMMISSIONING,NHS BARNSLEY CCG GP PRACTICE,33324687,"4,658.33"
Department of Health,NHS Barnsley CCG,31/07/2020,C&M-GMS Prem Rates,PRC DELEGATED CO-COMMISSIONING,NHS BARNSLEY CCG GP PRACTICE,33324687,"1,347.00"
Department of Health,NHS Barnsley CCG,31/07/2020,C&M-GMS QOF Aspiration,PRC DELEGATED CO-COMMISSIONING,NHS BARNSLEY CCG GP PRACTICE,33324687,"7,982.01"
Department of Health,NHS Barnsley CCG,31/07/2020,C&M-PMS GP Statutory Levy,PRC DELEGATED CO-COMMISSIONING,NHS BARNSLEY CCG GP PRACTICE,33066168,-571.03
Department of Health,NHS Barnsley CCG,31/07/2020,C&M-PMS Out of Hours Opt Outs,PRC DELEGATED CO-COMMISSIONING,NHS BARNSLEY CCG GP PRACTICE,33066168,"-6,610.21"
Department of Health,NHS Barnsley CCG,31/07/2020,C&M-PMS Voluntary Levy,PRC DELEGATED CO-COMMISSIONING,NHS BARNSLEY CCG GP PRACTICE,33066168,-99.93
Department of Health,NHS Barnsley CCG,31/07/2020,ME-PMS GP Pension EEs-PMS,PRC DELEGATED CO-COMMISSIONING,NHS BARNSLEY CCG GP PRACTICE,33066168,"-13,162.53"
Department of Health,NHS Barnsley CCG,31/07/2020,ME-PMS GP Pension ERs Adjs - PMS,PRC DELEGATED CO-COMMISSIONING,NHS BARNSLEY CCG GP PRACTICE,33066168,"-13,780.81"
Department of Health,NHS Barnsley CCG,31/07/2020,C&M-PMS Contract Value,PRC DELEGATED CO-COMMISSIONING,NHS BARNSLEY CCG GP PRACTICE,33066169,"138,517.78"
Department of Health,NHS Barnsley CCG,31/07/2020,C&M-PMS DES Minor Surgery,PRC DELEGATED CO-COMMISSIONING,NHS BARNSLEY CCG GP PRACTICE,33066169,"10,282.08"
Department of Health,NHS Barnsley CCG,31/07/2020,C&M-PMS PCN DES Participation,PRC DELEGATED CO-COMMISSIONING,NHS BARNSLEY CCG GP PRACTICE,33066169,"2,599.95"
Department of Health,NHS Barnsley CCG,31/07/2020,C&M-PMS Prem Actual Rent,PRC DELEGATED CO-COMMISSIONING,NHS BARNSLEY CCG GP PRACTICE,33066169,"24,600.00"
Department of Health,NHS Barnsley CCG,31/07/2020,C&M-PMS Prem Notional Rent,PRC DELEGATED CO-COMMISSIONING,NHS BARNSLEY CCG GP PRACTICE,33066169,"6,333.33"
Department of Health,NHS Barnsley CCG,31/07/2020,C&M-PMS Prem Rates,PRC DELEGATED CO-COMMISSIONING,NHS BARNSLEY CCG GP PRACTICE,33066169,"2,314.00"
Department of Health,NHS Barnsley CCG,31/07/2020,C&M-PMS QOF Aspiration,PRC DELEGATED CO-COMMISSIONING,NHS BARNSLEY CCG GP PRACTICE,33066169,"13,947.70"
Department of Health,NHS Barnsley CCG,31/07/2020,C&M-PMS Cost of Drugs -Dispensing,LOCAL ENHANCED SERVICES,NHS BARNSLEY CCG GP PRACTICE,33349994,"-71,670.80"
Department of Health,NHS Barnsley CCG,31/07/2020,C&M-PMS Prsc Chrgs Cll&Rmttd by GPs,PRC DELEGATED CO-COMMISSIONING,NHS BARNSLEY CCG GP PRACTICE,33349994,"-4,318.80"
Department of Health,NHS Barnsley CCG,31/07/2020,C&M-PMS Cost of Drugs -Dispensing,LOCAL ENHANCED SERVICES,NHS BARNSLEY CCG GP PRACTICE,33349995,"142,897.71"
Department of Health,NHS Barnsley CCG,31/07/2020,C&M-PMS Prof fees Dispensing,PRC DELEGATED CO-COMMISSIONING,NHS BARNSLEY CCG GP PRACTICE,33349995,"23,786.56"
Department of Health,NHS Barnsley CCG,31/07/2020,C&M-PMS Prsc Chrgs Cll&Rmttd by GPs,LOCAL ENHANCED SERVICES,NHS BARNSLEY CCG GP PRACTICE,33349995,"4,318.80"
Department of Health,NHS Barnsley CCG,31/07/2020,C&M-GMS DES Minor Surgery,PRC DELEGATED CO-COMMISSIONING,NHS BARNSLEY CCG GP PRACTICE,33327611,74.59
Department of Health,NHS Barnsley CCG,31/07/2020,C&M-GMS Global Sum,PRC DELEGATED CO-COMMISSIONING,NHS BARNSLEY CCG GP PRACTICE,33327611,"26,827.85"
Department of Health,NHS Barnsley CCG,31/07/2020,C&M-GMS PCN DES Participation,PRC DELEGATED CO-COMMISSIONING,NHS BARNSLEY CCG GP PRACTICE,33327611,509.52
Department of Health,NHS Barnsley CCG,31/07/2020,C&M-GMS PCO Other,PRC DELEGATED CO-COMMISSIONING,NHS BARNSLEY CCG GP PRACTICE,33327611,953.60
Department of Health,NHS Barnsley CCG,31/07/2020,C&M-GMS Prem Healthcentre Rent,PRC DELEGATED CO-COMMISSIONING,NHS BARNSLEY CCG GP PRACTICE,33327611,"1,512.79"
Department of Health,NHS Barnsley CCG,31/07/2020,C&M-GMS QOF Aspiration,PRC DELEGATED CO-COMMISSIONING,NHS BARNSLEY CCG GP PRACTICE,33327611,"2,713.55"
Department of Health,NHS Barnsley CCG,31/07/2020,C&M-GMS DES Minor Surgery,PRC DELEGATED CO-COMMISSIONING,NHS BARNSLEY CCG GP PRACTICE,33324689,330.31
Department of Health,NHS Barnsley CCG,31/07/2020,C&M-GMS Global Sum,PRC DELEGATED CO-COMMISSIONING,NHS BARNSLEY CCG GP PRACTICE,33324689,"44,871.45"
Department of Health,NHS Barnsley CCG,31/07/2020,C&M-GMS PCN DES Participation,PRC DELEGATED CO-COMMISSIONING,NHS BARNSLEY CCG GP PRACTICE,33324689,887.44
Department of Health,NHS Barnsley CCG,31/07/2020,C&M-GMS Prem Actual Rent,PRC DELEGATED CO-COMMISSIONING,NHS BARNSLEY CCG GP PRACTICE,33324689,"9,893.75"
Department of Health,NHS Barnsley CCG,31/07/2020,C&M-GMS Prem Notional Rent,PRC DELEGATED CO-COMMISSIONING,NHS BARNSLEY CCG GP PRACTICE,33324689,"1,681.25"
Department of Health,NHS Barnsley CCG,31/07/2020,C&M-GMS Prem Rates,PRC DELEGATED CO-COMMISSIONING,NHS BARNSLEY CCG GP PRACTICE,33324689,327.00
Department of Health,NHS Barnsley CCG,31/07/2020,C&M-GMS QOF Aspiration,PRC DELEGATED CO-COMMISSIONING,NHS BARNSLEY CCG GP PRACTICE,33324689,"4,111.93"
Department of Health,NHS Barnsley CCG,31/07/2020,C&M-PMS Contract Value,PRC DELEGATED CO-COMMISSIONING,NHS BARNSLEY CCG GP PRACTICE,33066167,"38,993.45"
Department of Health,NHS Barnsley CCG,31/07/2020,C&M-PMS DES Minor Surgery,PRC DELEGATED CO-COMMISSIONING,NHS BARNSLEY CCG GP PRACTICE,33066167,958.95
Department of Health,NHS Barnsley CCG,31/07/2020,C&M-PMS Out of Hours Opt Outs,PRC DELEGATED CO-COMMISSIONING,NHS BARNSLEY CCG GP PRACTICE,33066167,6.67
Department of Health,NHS Barnsley CCG,31/07/2020,C&M-PMS PCN DES Participation,PRC DELEGATED CO-COMMISSIONING,NHS BARNSLEY CCG GP PRACTICE,33066167,734.75
Department of Health,NHS Barnsley CCG,31/07/2020,C&M-PMS Prem Healthcentre Rent,PRC DELEGATED CO-COMMISSIONING,NHS BARNSLEY CCG GP PRACTICE,33066167,"3,823.07"
Department of Health,NHS Barnsley CCG,31/07/2020,C&M-PMS Prem Notional Rent,PRC DELEGATED CO-COMMISSIONING,NHS BARNSLEY CCG GP PRACTICE,33066167,"8,808.34"
Department of Health,NHS Barnsley CCG,31/07/2020,C&M-PMS Prem Rates,PRC DELEGATED CO-COMMISSIONING,NHS BARNSLEY CCG GP PRACTICE,33066167,"1,616.77"
Department of Health,NHS Barnsley CCG,31/07/2020,C&M-PMS Prem Water Rates,PRC DELEGATED CO-COMMISSIONING,NHS BARNSLEY CCG GP PRACTICE,33066167,144.35
Department of Health,NHS Barnsley CCG,31/07/2020,C&M-PMS QOF Aspiration,PRC DELEGATED CO-COMMISSIONING,NHS BARNSLEY CCG GP PRACTICE,33066167,"2,497.71"
Department of Health,NHS Barnsley CCG,31/07/2020,C&M-GMS DES Minor Surgery,PRC DELEGATED CO-COMMISSIONING,NHS BARNSLEY CCG GP PRACTICE,33324693,"6,371.69"
Department of Health,NHS Barnsley CCG,31/07/2020,C&M-GMS Global Sum,PRC DELEGATED CO-COMMISSIONING,NHS BARNSLEY CCG GP PRACTICE,33324693,"114,988.65"
Department of Health,NHS Barnsley CCG,31/07/2020,C&M-GMS PCN DES Participation,PRC DELEGATED CO-COMMISSIONING,NHS BARNSLEY CCG GP PRACTICE,33324693,"2,269.99"
Department of Health,NHS Barnsley CCG,31/07/2020,C&M-GMS PCO Other,PRC DELEGATED CO-COMMISSIONING,NHS BARNSLEY CCG GP PRACTICE,33324693,35.00
Department of Health,NHS Barnsley CCG,31/07/2020,C&M-GMS Prem Notional Rent,PRC DELEGATED CO-COMMISSIONING,NHS BARNSLEY CCG GP PRACTICE,33324693,"7,833.33"
Department of Health,NHS Barnsley CCG,31/07/2020,C&M-GMS QOF Aspiration,PRC DELEGATED CO-COMMISSIONING,NHS BARNSLEY CCG GP PRACTICE,33324693,"11,227.04"
Department of Health,NHS Barnsley CCG,31/07/2020,C&M-GMS DES Minor Surgery,PRC DELEGATED CO-COMMISSIONING,NHS BARNSLEY CCG GP PRACTICE,33324691,"3,899.73"
Department of Health,NHS Barnsley CCG,31/07/2020,C&M-GMS Global Sum,PRC DELEGATED CO-COMMISSIONING,NHS BARNSLEY CCG GP PRACTICE,33324691,"102,297.94"
Department of Health,NHS Barnsley CCG,31/07/2020,C&M-GMS PCN DES Participation,PRC DELEGATED CO-COMMISSIONING,NHS BARNSLEY CCG GP PRACTICE,33324691,"2,030.90"
Department of Health,NHS Barnsley CCG,31/07/2020,C&M-GMS Prem Notional Rent,PRC DELEGATED CO-COMMISSIONING,NHS BARNSLEY CCG GP PRACTICE,33324691,"13,593.75"
Department of Health,NHS Barnsley CCG,31/07/2020,C&M-GMS QOF Aspiration,PRC DELEGATED CO-COMMISSIONING,NHS BARNSLEY CCG GP PRACTICE,33324691,"10,258.12"
Department of Health,NHS Barnsley CCG,31/07/2020,C&M-GMS DES Minor Surgery,PRC DELEGATED CO-COMMISSIONING,NHS BARNSLEY CCG GP PRACTICE,33324695,"3,047.33"
Department of Health,NHS Barnsley CCG,31/07/2020,C&M-GMS Global Sum,PRC DELEGATED CO-COMMISSIONING,NHS BARNSLEY CCG GP PRACTICE,33324695,"85,263.10"
Department of Health,NHS Barnsley CCG,31/07/2020,C&M-GMS PCN DES Participation,PRC DELEGATED CO-COMMISSIONING,NHS BARNSLEY CCG GP PRACTICE,33324695,"1,704.01"
Department of Health,NHS Barnsley CCG,31/07/2020,C&M-GMS Prem Actual Rent,PRC DELEGATED CO-COMMISSIONING,NHS BARNSLEY CCG GP PRACTICE,33324695,"42,150.00"
Department of Health,NHS Barnsley CCG,31/07/2020,C&M-GMS QOF Aspiration,PRC DELEGATED CO-COMMISSIONING,NHS BARNSLEY CCG GP PRACTICE,33324695,"9,841.41"
Department of Health,NHS Barnsley CCG,31/07/2020,C&M-PMS Contract Value,PRC DELEGATED CO-COMMISSIONING,NHS BARNSLEY CCG GP PRACTICE,33066170,-560.45
Department of Health,NHS Barnsley CCG,31/07/2020,C&M-PMS GP Statutory Levy,PRC DELEGATED CO-COMMISSIONING,NHS BARNSLEY CCG GP PRACTICE,33066170,-568.73
Department of Health,NHS Barnsley CCG,31/07/2020,C&M-PMS Out of Hours Opt Outs,PRC DELEGATED CO-COMMISSIONING,NHS BARNSLEY CCG GP PRACTICE,33066170,"-7,190.27"
Department of Health,NHS Barnsley CCG,31/07/2020,C&M-PMS Voluntary Levy,PRC DELEGATED CO-COMMISSIONING,NHS BARNSLEY CCG GP PRACTICE,33066170,-99.53
Department of Health,NHS Barnsley CCG,31/07/2020,ME - PMS GP Prior Year ERs,PRC DELEGATED CO-COMMISSIONING,NHS BARNSLEY CCG GP PRACTICE,33066170,"-14,895.32"
Department of Health,NHS Barnsley CCG,31/07/2020,ME - PMS TPS Added Years Adj EEs,PRC DELEGATED CO-COMMISSIONING,NHS BARNSLEY CCG GP PRACTICE,33066170,-346.67
Department of Health,NHS Barnsley CCG,31/07/2020,ME-PMS GP Pension EEs-PMS,PRC DELEGATED CO-COMMISSIONING,NHS BARNSLEY CCG GP PRACTICE,33066170,"-9,153.76"
Department of Health,NHS Barnsley CCG,31/07/2020,ME-PMS GP Pension ERs Adjs - PMS,PRC DELEGATED CO-COMMISSIONING,NHS BARNSLEY CCG GP PRACTICE,33066170,"-9,577.00"
Department of Health,NHS Barnsley CCG,31/07/2020,ME-PMS GP Prior Year EEs,PRC DELEGATED CO-COMMISSIONING,NHS BARNSLEY CCG GP PRACTICE,33066170,"-15,019.62"
Department of Health,NHS Barnsley CCG,31/07/2020,C&M-PMS Contract Value,PRC DELEGATED CO-COMMISSIONING,NHS BARNSLEY CCG GP PRACTICE,33066171,"150,673.34"
Department of Health,NHS Barnsley CCG,31/07/2020,C&M-PMS DES Minor Surgery,PRC DELEGATED CO-COMMISSIONING,NHS BARNSLEY CCG GP PRACTICE,33066171,"11,070.55"
Department of Health,NHS Barnsley CCG,31/07/2020,C&M-PMS Out of Hours Opt Outs,PRC DELEGATED CO-COMMISSIONING,NHS BARNSLEY CCG GP PRACTICE,33066171,25.97
Department of Health,NHS Barnsley CCG,31/07/2020,C&M-PMS PCN DES Participation,PRC DELEGATED CO-COMMISSIONING,NHS BARNSLEY CCG GP PRACTICE,33066171,"2,839.03"
Department of Health,NHS Barnsley CCG,31/07/2020,C&M-PMS PCO Locum Adop/Pat/Mat,PRC DELEGATED CO-COMMISSIONING,NHS BARNSLEY CCG GP PRACTICE,33066171,"6,363.04"
Department of Health,NHS Barnsley CCG,31/07/2020,C&M-PMS Prem Notional Rent,PRC DELEGATED CO-COMMISSIONING,NHS BARNSLEY CCG GP PRACTICE,33066171,"11,879.17"
Department of Health,NHS Barnsley CCG,31/07/2020,C&M-PMS QOF Aspiration,PRC DELEGATED CO-COMMISSIONING,NHS BARNSLEY CCG GP PRACTICE,33066171,"14,216.84"
Department of Health,NHS Barnsley CCG,31/07/2020,ME - PMS GP Prior Year ERs,PRC DELEGATED CO-COMMISSIONING,NHS BARNSLEY CCG GP PRACTICE,33066171,"19,825.00"
Department of Health,NHS Barnsley CCG,31/07/2020,ME-PMS GP Prior Year EEs,PRC DELEGATED CO-COMMISSIONING,NHS BARNSLEY CCG GP PRACTICE,33066171,"18,611.84"
Department of Health,NHS Barnsley CCG,31/07/2020,C&M-PMS GP Statutory Levy,PRC DELEGATED CO-COMMISSIONING,NHS BARNSLEY CCG GP PRACTICE,33066172,-406.93
Department of Health,NHS Barnsley CCG,31/07/2020,C&M-PMS Out of Hours Opt Outs,PRC DELEGATED CO-COMMISSIONING,NHS BARNSLEY CCG GP PRACTICE,33066172,"-5,241.18"
Department of Health,NHS Barnsley CCG,31/07/2020,C&M-PMS Voluntary Levy,PRC DELEGATED CO-COMMISSIONING,NHS BARNSLEY CCG GP PRACTICE,33066172,-71.21
Department of Health,NHS Barnsley CCG,31/07/2020,ME-PMS GP Pension EEs-PMS,PRC DELEGATED CO-COMMISSIONING,NHS BARNSLEY CCG GP PRACTICE,33066172,"-9,659.59"
Department of Health,NHS Barnsley CCG,31/07/2020,ME-PMS GP Pension ERs Adjs - PMS,PRC DELEGATED CO-COMMISSIONING,NHS BARNSLEY CCG GP PRACTICE,33066172,"-10,149.88"
Department of Health,NHS Barnsley CCG,31/07/2020,C&M-PMS Contract Value,PRC DELEGATED CO-COMMISSIONING,NHS BARNSLEY CCG GP PRACTICE,33066173,"109,830.28"
Department of Health,NHS Barnsley CCG,31/07/2020,C&M-PMS DES Minor Surgery,PRC DELEGATED CO-COMMISSIONING,NHS BARNSLEY CCG GP PRACTICE,33066173,"10,207.49"
Department of Health,NHS Barnsley CCG,31/07/2020,C&M-PMS PCN DES Participation,PRC DELEGATED CO-COMMISSIONING,NHS BARNSLEY CCG GP PRACTICE,33066173,"2,045.70"
Department of Health,NHS Barnsley CCG,31/07/2020,C&M-PMS PCO Other,PRC DELEGATED CO-COMMISSIONING,NHS BARNSLEY CCG GP PRACTICE,33066173,738.80
Department of Health,NHS Barnsley CCG,31/07/2020,C&M-PMS Prem Actual Rent,PRC DELEGATED CO-COMMISSIONING,NHS BARNSLEY CCG GP PRACTICE,33066173,"13,654.16"
Department of Health,NHS Barnsley CCG,31/07/2020,C&M-PMS Prem Rates,PRC DELEGATED CO-COMMISSIONING,NHS BARNSLEY CCG GP PRACTICE,33066173,"3,328.00"
Department of Health,NHS Barnsley CCG,31/07/2020,C&M-PMS QOF Aspiration,PRC DELEGATED CO-COMMISSIONING,NHS BARNSLEY CCG GP PRACTICE,33066173,"10,981.94"
Department of Health,NHS Barnsley CCG,31/07/2020,C&M-PMS Contract Value,PRC DELEGATED CO-COMMISSIONING,NHS BARNSLEY CCG GP PRACTICE,33066175,"95,585.63"
Department of Health,NHS Barnsley CCG,31/07/2020,C&M-PMS DES Minor Surgery,PRC DELEGATED CO-COMMISSIONING,NHS BARNSLEY CCG GP PRACTICE,33066175,"3,516.15"
Department of Health,NHS Barnsley CCG,31/07/2020,C&M-PMS Out of Hours Opt Outs,PRC DELEGATED CO-COMMISSIONING,NHS BARNSLEY CCG GP PRACTICE,33066175,7.06
Department of Health,NHS Barnsley CCG,31/07/2020,C&M-PMS PCN DES Participation,PRC DELEGATED CO-COMMISSIONING,NHS BARNSLEY CCG GP PRACTICE,33066175,"1,801.03"
Department of Health,NHS Barnsley CCG,31/07/2020,C&M-PMS Prem Actual Rent,PRC DELEGATED CO-COMMISSIONING,NHS BARNSLEY CCG GP PRACTICE,33066175,"8,566.67"
Department of Health,NHS Barnsley CCG,31/07/2020,C&M-PMS QOF Aspiration,PRC DELEGATED CO-COMMISSIONING,NHS BARNSLEY CCG GP PRACTICE,33066175,"7,847.52"
Department of Health,NHS Barnsley CCG,31/07/2020,C&M-GMS DES Minor Surgery,PRC DELEGATED CO-COMMISSIONING,NHS BARNSLEY CCG GP PRACTICE,33324697,916.33
Department of Health,NHS Barnsley CCG,31/07/2020,C&M-GMS Global Sum,PRC DELEGATED CO-COMMISSIONING,NHS BARNSLEY CCG GP PRACTICE,33324697,"61,142.44"
Department of Health,NHS Barnsley CCG,31/07/2020,C&M-GMS PCN DES Participation,PRC DELEGATED CO-COMMISSIONING,NHS BARNSLEY CCG GP PRACTICE,33324697,"1,196.18"
Department of Health,NHS Barnsley CCG,31/07/2020,C&M-GMS Prem Healthcentre Rent,PRC DELEGATED CO-COMMISSIONING,NHS BARNSLEY CCG GP PRACTICE,33324697,"25,525.82"
Department of Health,NHS Barnsley CCG,31/07/2020,C&M-GMS QOF Aspiration,PRC DELEGATED CO-COMMISSIONING,NHS BARNSLEY CCG GP PRACTICE,33324697,"6,108.91"
Department of Health,NHS Barnsley CCG,31/07/2020,C&M-PMS GP Statutory Levy,PRC DELEGATED CO-COMMISSIONING,NHS BARNSLEY CCG GP PRACTICE,33066176,-433.27
Department of Health,NHS Barnsley CCG,31/07/2020,C&M-PMS Out of Hours Opt Outs,PRC DELEGATED CO-COMMISSIONING,NHS BARNSLEY CCG GP PRACTICE,33066176,"-5,212.56"
Department of Health,NHS Barnsley CCG,31/07/2020,C&M-PMS Voluntary Levy,PRC DELEGATED CO-COMMISSIONING,NHS BARNSLEY CCG GP PRACTICE,33066176,-75.82
Department of Health,NHS Barnsley CCG,31/07/2020,ME - PMS GP Prior Year ERs,PRC DELEGATED CO-COMMISSIONING,NHS BARNSLEY CCG GP PRACTICE,33066176,"-8,883.05"
Department of Health,NHS Barnsley CCG,31/07/2020,ME-PMS GP Pension EEs-PMS,PRC DELEGATED CO-COMMISSIONING,NHS BARNSLEY CCG GP PRACTICE,33066176,"-4,440.03"
Department of Health,NHS Barnsley CCG,31/07/2020,ME-PMS GP Pension ERs Adjs - PMS,PRC DELEGATED CO-COMMISSIONING,NHS BARNSLEY CCG GP PRACTICE,33066176,"-5,125.31"
Department of Health,NHS Barnsley CCG,31/07/2020,ME-PMS GP Prior Year EEs,PRC DELEGATED CO-COMMISSIONING,NHS BARNSLEY CCG GP PRACTICE,33066176,"-3,980.57"
Department of Health,NHS Barnsley CCG,31/07/2020,C&M-PMS Contract Value,PRC DELEGATED CO-COMMISSIONING,NHS BARNSLEY CCG GP PRACTICE,33066177,"109,242.36"
Department of Health,NHS Barnsley CCG,31/07/2020,C&M-PMS DES Minor Surgery,PRC DELEGATED CO-COMMISSIONING,NHS BARNSLEY CCG GP PRACTICE,33066177,"5,469.57"
Department of Health,NHS Barnsley CCG,31/07/2020,C&M-PMS PCN DES Participation,PRC DELEGATED CO-COMMISSIONING,NHS BARNSLEY CCG GP PRACTICE,33066177,"2,050.79"
Department of Health,NHS Barnsley CCG,31/07/2020,C&M-PMS Prem Actual Rent,PRC DELEGATED CO-COMMISSIONING,NHS BARNSLEY CCG GP PRACTICE,33066177,"55,281.25"
Department of Health,NHS Barnsley CCG,31/07/2020,C&M-PMS Prem Rates,PRC DELEGATED CO-COMMISSIONING,NHS BARNSLEY CCG GP PRACTICE,33066177,"3,610.00"
Department of Health,NHS Barnsley CCG,31/07/2020,C&M-PMS QOF Aspiration,PRC DELEGATED CO-COMMISSIONING,NHS BARNSLEY CCG GP PRACTICE,33066177,"11,008.42"
Department of Health,NHS Barnsley CCG,31/07/2020,C&M-GMS DES Minor Surgery,PRC DELEGATED CO-COMMISSIONING,NHS BARNSLEY CCG GP PRACTICE,33324701,"4,943.92"
Department of Health,NHS Barnsley CCG,31/07/2020,C&M-GMS Global Sum,PRC DELEGATED CO-COMMISSIONING,NHS BARNSLEY CCG GP PRACTICE,33324701,"53,443.64"
Department of Health,NHS Barnsley CCG,31/07/2020,C&M-GMS PCN DES Participation,PRC DELEGATED CO-COMMISSIONING,NHS BARNSLEY CCG GP PRACTICE,33324701,"1,044.20"
Department of Health,NHS Barnsley CCG,31/07/2020,C&M-GMS PCO Other,PRC DELEGATED CO-COMMISSIONING,NHS BARNSLEY CCG GP PRACTICE,33324701,"4,048.00"
Department of Health,NHS Barnsley CCG,31/07/2020,C&M-GMS Prem Notional Rent,PRC DELEGATED CO-COMMISSIONING,NHS BARNSLEY CCG GP PRACTICE,33324701,"2,750.00"
Department of Health,NHS Barnsley CCG,31/07/2020,C&M-GMS Prem Rates,PRC DELEGATED CO-COMMISSIONING,NHS BARNSLEY CCG GP PRACTICE,33324701,660.00
Department of Health,NHS Barnsley CCG,31/07/2020,C&M-GMS QOF Aspiration,PRC DELEGATED CO-COMMISSIONING,NHS BARNSLEY CCG GP PRACTICE,33324701,"4,715.61"
Department of Health,NHS Barnsley CCG,31/07/2020,C&M-PMS Contract Value,PRC DELEGATED CO-COMMISSIONING,NHS BARNSLEY CCG GP PRACTICE,33066196,"42,557.26"
Department of Health,NHS Barnsley CCG,31/07/2020,C&M-PMS PCN DES Participation,PRC DELEGATED CO-COMMISSIONING,NHS BARNSLEY CCG GP PRACTICE,33066196,796.71
Department of Health,NHS Barnsley CCG,31/07/2020,C&M-PMS Prem Notional Rent,PRC DELEGATED CO-COMMISSIONING,NHS BARNSLEY CCG GP PRACTICE,33066196,"24,437.50"
Department of Health,NHS Barnsley CCG,31/07/2020,C&M-PMS Prem Rates,PRC DELEGATED CO-COMMISSIONING,NHS BARNSLEY CCG GP PRACTICE,33066196,"2,667.00"
Department of Health,NHS Barnsley CCG,31/07/2020,C&M-PMS QOF Aspiration,PRC DELEGATED CO-COMMISSIONING,NHS BARNSLEY CCG GP PRACTICE,33066196,"4,499.30"
Department of Health,NHS Barnsley CCG,31/07/2020,Soc Care-Bed-Based Int Care Servs,INTERMEDIATE CARE,HIGHSTONE MEWS CARE HOME,33027670,"33,798.86"
Department of Health,NHS Barnsley CCG,31/07/2020,Apprenticeship Levy Payable,BALANCE SHEET,HMRC,33179990,"1,491.00"
Department of Health,NHS Barnsley CCG,31/07/2020,Income tax <1Yr,BALANCE SHEET,HMRC,33179990,"81,195.90"
Department of Health,NHS Barnsley CCG,31/07/2020,Income tax <1Yr-Student Loans,BALANCE SHEET,HMRC,33179990,"2,945.00"
Department of Health,NHS Barnsley CCG,31/07/2020,National Insurance < 1 yr-NI- ERS,BALANCE SHEET,HMRC,33179990,"59,061.88"
Department of Health,NHS Barnsley CCG,31/07/2020,National Insurance < 1 yr-NI-EES,BALANCE SHEET,HMRC,33179990,"42,766.05"
Department of Health,NHS Barnsley CCG,31/07/2020,Post Graduate Loan Payable,BALANCE SHEET,HMRC,33179990,4.00
Department of Health,NHS Barnsley CCG,31/07/2020,Statutory Mat Pay < 1 yr,BALANCE SHEET,HMRC,33179990,-695.50
Department of Health,NHS Barnsley CCG,31/07/2020,C&M-GMS DES Minor Surgery,PRC DELEGATED CO-COMMISSIONING,NHS BARNSLEY CCG GP PRACTICE,33324711,"3,303.05"
Department of Health,NHS Barnsley CCG,31/07/2020,C&M-GMS Global Sum,PRC DELEGATED CO-COMMISSIONING,NHS BARNSLEY CCG GP PRACTICE,33324711,"101,313.06"
Department of Health,NHS Barnsley CCG,31/07/2020,C&M-GMS PCN DES Participation,PRC DELEGATED CO-COMMISSIONING,NHS BARNSLEY CCG GP PRACTICE,33324711,"1,983.65"
Department of Health,NHS Barnsley CCG,31/07/2020,C&M-GMS Prem Healthcentre Rent,PRC DELEGATED CO-COMMISSIONING,NHS BARNSLEY CCG GP PRACTICE,33324711,"40,594.93"
Department of Health,NHS Barnsley CCG,31/07/2020,C&M-GMS QOF Aspiration,PRC DELEGATED CO-COMMISSIONING,NHS BARNSLEY CCG GP PRACTICE,33324711,"8,474.88"
Department of Health,NHS Barnsley CCG,31/07/2020,C&M-GMS DES Minor Surgery,PRC DELEGATED CO-COMMISSIONING,NHS BARNSLEY CCG GP PRACTICE,33324704,"2,983.40"
Department of Health,NHS Barnsley CCG,31/07/2020,C&M-GMS Global Sum,PRC DELEGATED CO-COMMISSIONING,NHS BARNSLEY CCG GP PRACTICE,33324704,"95,820.38"
Department of Health,NHS Barnsley CCG,31/07/2020,C&M-GMS PCN DES Participation,PRC DELEGATED CO-COMMISSIONING,NHS BARNSLEY CCG GP PRACTICE,33324704,"1,883.17"
Department of Health,NHS Barnsley CCG,31/07/2020,C&M-GMS Prem Healthcentre Rent,PRC DELEGATED CO-COMMISSIONING,NHS BARNSLEY CCG GP PRACTICE,33324704,"22,068.28"
Department of Health,NHS Barnsley CCG,31/07/2020,C&M-GMS Prem Notional Rent,PRC DELEGATED CO-COMMISSIONING,NHS BARNSLEY CCG GP PRACTICE,33324704,"1,466.67"
Department of Health,NHS Barnsley CCG,31/07/2020,C&M-GMS Prem Water Rates,PRC DELEGATED CO-COMMISSIONING,NHS BARNSLEY CCG GP PRACTICE,33324704,138.32
Department of Health,NHS Barnsley CCG,31/07/2020,C&M-GMS QOF Aspiration,PRC DELEGATED CO-COMMISSIONING,NHS BARNSLEY CCG GP PRACTICE,33324704,"10,495.90"
Department of Health,NHS Barnsley CCG,31/07/2020,C&M-PMS Contract Value,PRC DELEGATED CO-COMMISSIONING,NHS BARNSLEY CCG GP PRACTICE,33066179,"51,431.13"
Department of Health,NHS Barnsley CCG,31/07/2020,C&M-PMS Out of Hours Opt Outs,PRC DELEGATED CO-COMMISSIONING,NHS BARNSLEY CCG GP PRACTICE,33066179,0.44
Department of Health,NHS Barnsley CCG,31/07/2020,C&M-PMS PCN DES Participation,PRC DELEGATED CO-COMMISSIONING,NHS BARNSLEY CCG GP PRACTICE,33066179,969.09
Department of Health,NHS Barnsley CCG,31/07/2020,C&M-PMS Prem Healthcentre Rent,PRC DELEGATED CO-COMMISSIONING,NHS BARNSLEY CCG GP PRACTICE,33066179,"6,104.82"
Department of Health,NHS Barnsley CCG,31/07/2020,C&M-PMS Prem Notional Rent,PRC DELEGATED CO-COMMISSIONING,NHS BARNSLEY CCG GP PRACTICE,33066179,"3,666.67"
Department of Health,NHS Barnsley CCG,31/07/2020,C&M-PMS QOF Aspiration,PRC DELEGATED CO-COMMISSIONING,NHS BARNSLEY CCG GP PRACTICE,33066179,"4,997.36"
Department of Health,NHS Barnsley CCG,31/07/2020,C&M-PMS Contract Value,PRC DELEGATED CO-COMMISSIONING,NHS BARNSLEY CCG GP PRACTICE,33066192,"31,122.44"
Department of Health,NHS Barnsley CCG,31/07/2020,C&M-PMS DES Minor Surgery,PRC DELEGATED CO-COMMISSIONING,NHS BARNSLEY CCG GP PRACTICE,33066192,"1,715.46"
Department of Health,NHS Barnsley CCG,31/07/2020,C&M-PMS Out of Hours Opt Outs,PRC DELEGATED CO-COMMISSIONING,NHS BARNSLEY CCG GP PRACTICE,33066192,3.11
Department of Health,NHS Barnsley CCG,31/07/2020,C&M-PMS PCN DES Participation,PRC DELEGATED CO-COMMISSIONING,NHS BARNSLEY CCG GP PRACTICE,33066192,586.39
Department of Health,NHS Barnsley CCG,31/07/2020,C&M-PMS Prem Notional Rent,PRC DELEGATED CO-COMMISSIONING,NHS BARNSLEY CCG GP PRACTICE,33066192,"4,333.33"
Department of Health,NHS Barnsley CCG,31/07/2020,C&M-PMS QOF Aspiration,PRC DELEGATED CO-COMMISSIONING,NHS BARNSLEY CCG GP PRACTICE,33066192,"2,618.55"
Department of Health,NHS Barnsley CCG,31/07/2020,C&M-PMS Cost of Drugs -Dispensing,LOCAL ENHANCED SERVICES,NHS BARNSLEY CCG GP PRACTICE,33350012,"21,546.87"
Department of Health,NHS Barnsley CCG,31/07/2020,C&M-PMS Prof fees Dispensing,PRC DELEGATED CO-COMMISSIONING,NHS BARNSLEY CCG GP PRACTICE,33350012,"4,171.06"
Department of Health,NHS Barnsley CCG,31/07/2020,C&M-PMS Prsc Chrgs Cll&Rmttd by GPs,LOCAL ENHANCED SERVICES,NHS BARNSLEY CCG GP PRACTICE,33350012,"1,317.60"
Department of Health,NHS Barnsley CCG,31/07/2020,C&M-APMS Contract Value,PRC DELEGATED CO-COMMISSIONING,NHS BARNSLEY CCG GP PRACTICE,33092460,"20,506.86"
Department of Health,NHS Barnsley CCG,31/07/2020,C&M-APMS OOH Opt Outs,PRC DELEGATED CO-COMMISSIONING,NHS BARNSLEY CCG GP PRACTICE,33092460,13.06
Department of Health,NHS Barnsley CCG,31/07/2020,C&M-APMS PCN DES Participation,PRC DELEGATED CO-COMMISSIONING,NHS BARNSLEY CCG GP PRACTICE,33092460,386.98
Department of Health,NHS Barnsley CCG,31/07/2020,C&M-APMS Prem Healthcentre Rent,PRC DELEGATED CO-COMMISSIONING,NHS BARNSLEY CCG GP PRACTICE,33092460,"5,111.96"
Department of Health,NHS Barnsley CCG,31/07/2020,C&M-PMS DES Minor Surgery,PRC DELEGATED CO-COMMISSIONING,NHS BARNSLEY CCG GP PRACTICE,33092460,170.45
Department of Health,NHS Barnsley CCG,31/07/2020,C&M-PMS QOF Aspiration,PRC DELEGATED CO-COMMISSIONING,NHS BARNSLEY CCG GP PRACTICE,33092460,"1,447.43"
Department of Health,NHS Barnsley CCG,31/07/2020,Hcare Srv Rec NHS Trust-Contract Baseline,ACUTE COMMISSIONING,LEEDS TEACHING HOSPITALS NHS TRUST,33031018,"95,721.00"
Department of Health,NHS Barnsley CCG,31/07/2020,Hcare Srv Rec NHS Trust-Contract Baseline,ACUTE COMMISSIONING,MID YORKSHIRE HOSPITALS NHS TRUST,33031020,"283,165.00"
Department of Health,NHS Barnsley CCG,31/07/2020,Hcare Srv Rec NHS Trust-Contract Variation,ADMINISTRATION & BUSINESS SUPPORT,NHS PROPERTY SERVICES LTD,33104380,"9,105.75"
Department of Health,NHS Barnsley CCG,31/07/2020,Non-PFI Oprtng Lease-Bldgs-Lease Rent,ADMINISTRATION & BUSINESS SUPPORT,NHS PROPERTY SERVICES LTD,33104380,"25,486.25"
Department of Health,NHS Barnsley CCG,31/07/2020,Clinical&Medical-Commercial Sector,ACUTE COMMISSIONING,ONEHEALTH GROUP,33104387,"163,172.00"
Department of Health,NHS Barnsley CCG,31/07/2020,Other Transport Costs,PATIENT TRANSPORT,PREMIER CARE DIRECT LTD,33272523,"35,025.67"
Department of Health,NHS Barnsley CCG,31/07/2020,Clinical&Medical-Commercial Sector,Mental Health Services - S117 Mental Health,RELATIVETO LTD,32983435,"40,823.28"
Department of Health,NHS Barnsley CCG,31/07/2020,Clinical&Medical-Commercial Sector,Mental Health Services - S117 Mental Health,RELATIVETO LTD,33314988,"39,506.40"
Department of Health,NHS Barnsley CCG,31/07/2020,Hcare Srv Rec Fdtn Trust-Non Contract,MENTAL HEALTH SERVICES - NOT CONTRACTED ACTIVITY,ROTHERHAM DONCASTER AND SOUTH HUMBER NHS FOUNDATION TRUST,33031009,"61,910.00"
Department of Health,NHS Barnsley CCG,31/07/2020,Hcare Srv Rec Fdtn Trust-Contract Baseline,ACUTE COMMISSIONING,ROTHERHAM NHS FOUNDATION TRUST,33031032,"430,973.00"
Department of Health,NHS Barnsley CCG,31/07/2020,C&M-GMS DES Minor Surgery,PRC DELEGATED CO-COMMISSIONING,NHS BARNSLEY CCG GP PRACTICE,33327613,"1,502.36"
Department of Health,NHS Barnsley CCG,31/07/2020,C&M-GMS Global Sum,PRC DELEGATED CO-COMMISSIONING,NHS BARNSLEY CCG GP PRACTICE,33327613,"64,377.83"
Department of Health,NHS Barnsley CCG,31/07/2020,C&M-GMS PCN DES Participation,PRC DELEGATED CO-COMMISSIONING,NHS BARNSLEY CCG GP PRACTICE,33327613,"1,272.87"
Department of Health,NHS Barnsley CCG,31/07/2020,C&M-GMS Prem Notional Rent,PRC DELEGATED CO-COMMISSIONING,NHS BARNSLEY CCG GP PRACTICE,33327613,"16,426.56"
Department of Health,NHS Barnsley CCG,31/07/2020,C&M-GMS Prem Rates,PRC DELEGATED CO-COMMISSIONING,NHS BARNSLEY CCG GP PRACTICE,33327613,904.00
Department of Health,NHS Barnsley CCG,31/07/2020,C&M-GMS QOF Aspiration,PRC DELEGATED CO-COMMISSIONING,NHS BARNSLEY CCG GP PRACTICE,33327613,"7,046.77"
Department of Health,NHS Barnsley CCG,31/07/2020,Hcare Srv Rec Fdtn Trust-Contract Baseline,ACUTE COMMISSIONING,SHEFFIELD CHILDRENS NHS FOUNDATION TRUST,33031029,"151,120.00"
Department of Health,NHS Barnsley CCG,31/07/2020,Cont Care- Prior Year Payments,ADULT JOINT FUNDED CONTINUING CARE,SHEFFIELD CITY COUNCIL,33027675,"58,557.30"
Department of Health,NHS Barnsley CCG,31/07/2020,Hcare Srv Rec Fdtn Trust-Contract Baseline,MENTAL HEALTH CONTRACTS,SHEFFIELD HEALTH & SOCIAL CARE NHS FOUNDATION TRUST,33031012,"27,253.00"
Department of Health,NHS Barnsley CCG,31/07/2020,Hcare Srv Rec Fdtn Trust-Contract Baseline,ACUTE COMMISSIONING,SHEFFIELD TEACHING HOSPITALS NHS FOUNDATION TRUST,33031031,"2,197,471.00"
Department of Health,NHS Barnsley CCG,31/07/2020,Hcare Srv Rec Fdtn Trust-Contract Baseline,COMMUNITY SERVICES,SOUTH WEST YORKSHIRE PARTNERSHIP NHS FOUNDATION TRUST,33031015,"5,134,896.00"
Department of Health,NHS Barnsley CCG,31/07/2020,Hcare Srv Rec NHS Trust-Non Contract,NCAS/OATS,UNITED LINCOLNSHIRE HOSPITALS NHS TRUST,33031023,"27,186.00"
Department of Health,NHS Barnsley CCG,31/07/2020,C&M-PMS Contract Value,PRC DELEGATED CO-COMMISSIONING,NHS BARNSLEY CCG GP PRACTICE,33066181,"81,200.54"
Department of Health,NHS Barnsley CCG,31/07/2020,C&M-PMS DES Minor Surgery,PRC DELEGATED CO-COMMISSIONING,NHS BARNSLEY CCG GP PRACTICE,33066181,628.65
Department of Health,NHS Barnsley CCG,31/07/2020,C&M-PMS Out of Hours Opt Outs,PRC DELEGATED CO-COMMISSIONING,NHS BARNSLEY CCG GP PRACTICE,33066181,16.46
Department of Health,NHS Barnsley CCG,31/07/2020,C&M-PMS PCN DES Participation,PRC DELEGATED CO-COMMISSIONING,NHS BARNSLEY CCG GP PRACTICE,33066181,"1,530.00"
Department of Health,NHS Barnsley CCG,31/07/2020,C&M-PMS Prem Actual Rent,PRC DELEGATED CO-COMMISSIONING,NHS BARNSLEY CCG GP PRACTICE,33066181,319.38
Department of Health,NHS Barnsley CCG,31/07/2020,C&M-PMS Prem Healthcentre Rent,PRC DELEGATED CO-COMMISSIONING,NHS BARNSLEY CCG GP PRACTICE,33066181,"22,813.77"
Department of Health,NHS Barnsley CCG,31/07/2020,C&M-PMS QOF Aspiration,PRC DELEGATED CO-COMMISSIONING,NHS BARNSLEY CCG GP PRACTICE,33066181,"7,747.41"
Department of Health,NHS Barnsley CCG,31/07/2020,ME - PMS GP Prior Year ERs,PRC DELEGATED CO-COMMISSIONING,NHS BARNSLEY CCG GP PRACTICE,33066181,27.83
Department of Health,NHS Barnsley CCG,31/07/2020,ME-PMS GP Pension EEs Adjs - PMS,PRC DELEGATED CO-COMMISSIONING,NHS BARNSLEY CCG GP PRACTICE,33066181,"1,620.00"
Department of Health,NHS Barnsley CCG,31/07/2020,ME-PMS GP Pension ERs Adjs - PMS,PRC DELEGATED CO-COMMISSIONING,NHS BARNSLEY CCG GP PRACTICE,33066181,"1,725.60"
Department of Health,NHS Barnsley CCG,31/07/2020,ME-PMS GP Prior Year EEs,PRC DELEGATED CO-COMMISSIONING,NHS BARNSLEY CCG GP PRACTICE,33066181,26.13
Department of Health,NHS Barnsley CCG,31/07/2020,C&M-PMS Contract Value,PRC DELEGATED CO-COMMISSIONING,NHS BARNSLEY CCG GP PRACTICE,33066194,"46,220.72"
Department of Health,NHS Barnsley CCG,31/07/2020,C&M-PMS DES Minor Surgery,PRC DELEGATED CO-COMMISSIONING,NHS BARNSLEY CCG GP PRACTICE,33066194,777.82
Department of Health,NHS Barnsley CCG,31/07/2020,C&M-PMS Out of Hours Opt Outs,PRC DELEGATED CO-COMMISSIONING,NHS BARNSLEY CCG GP PRACTICE,33066194,15.39
Department of Health,NHS Barnsley CCG,31/07/2020,C&M-PMS PCN DES Participation,PRC DELEGATED CO-COMMISSIONING,NHS BARNSLEY CCG GP PRACTICE,33066194,870.90
Department of Health,NHS Barnsley CCG,31/07/2020,C&M-PMS PCO Other,PRC DELEGATED CO-COMMISSIONING,NHS BARNSLEY CCG GP PRACTICE,33066194,338.50
Department of Health,NHS Barnsley CCG,31/07/2020,C&M-PMS Prem Notional Rent,PRC DELEGATED CO-COMMISSIONING,NHS BARNSLEY CCG GP PRACTICE,33066194,"28,500.00"
Department of Health,NHS Barnsley CCG,31/07/2020,C&M-PMS Prem Rates,PRC DELEGATED CO-COMMISSIONING,NHS BARNSLEY CCG GP PRACTICE,33066194,"1,528.00"
Department of Health,NHS Barnsley CCG,31/07/2020,C&M-PMS QOF Aspiration,PRC DELEGATED CO-COMMISSIONING,NHS BARNSLEY CCG GP PRACTICE,33066194,"4,047.87"
Department of Health,NHS Barnsley CCG,31/07/2020,Hcare Srv Rec NHS Trust-Contract Baseline,AMBULANCE SERVICES,YORKSHIRE AMBULANCE SERVICE NHS TRUST,33031028,"1,021,254.00"
Department of Health,NHS Barnsley CCG,30/06/2020,Service Charge,ADMINISTRATION & BUSINESS SUPPORT,NHS PROPERTY SERVICES LTD,32794615,"9,105.75"
Department of Health,NHS Barnsley CCG,30/06/2020,Non-PFI Oprtng Lease-Bldgs-Lease Rent,ADMINISTRATION & BUSINESS SUPPORT,NHS PROPERTY SERVICES LTD,32794615,"25,486.25"
,,,,,,,"31,087,855.98"
